Workbook

Sheet Kapitalbedarf
B1: Kapitalbedarfsplan
B3: Investitionen | H3: Beispiel | I3: Ihre Zahlen
C4: Grundstücke | H4: 0 | I4: 0
B5: + | C5: Gebäude | H5: 0 | I5: 0
B6: + | C6: Umbaumaßnahmen | H6: 10,000.00 € | I6: 0
B7: + | C7: Maschinen, Geräte | H7: 40,000.00 € | I7: 0
B8: + | C8: Geschäfts- und Ladeneinrichtung | H8: 19,000.00 € | I8: 0
B9: + | C9: Fahrzeuge | H9: 30,000.00 € | I9: 0
B11: = | C11: Kapitalbedarf für Investitionen | H11: =SUM(H4:H10) -> 99,000.00 € | I11: =SUM(I4:I10) -> 0
B15: Material- und Warenlager | H15: Beispiel | I15: Ihre Zahlen
C16: Voraussischtlicher Materialeinsatz (Produktion) pro Jahr | H16: 100,000.00 € | I16: 0
C17: durchschnittlicher Materialumschlag pro Jahr | H17: 2.00 x
C18: Fertigwarenbestand (Handelswaren) | H18: 30,000.00 € | I18: 0
B19: = | C19: Kapitalbedarf für Warenbestand | H19: =H16/H17+H18 -> 80,000.00 € | I19: =IF(I17=0,I18,I16/I17+I18) -> 0
B23: Betriebsmittel | H23: Beispiel | I23: Ihre Zahlen
C24: Personalkosten p.a. | H24: 90,000.00 € | I24: 0
B25: + | C25: Sachkosten p.a. (z.B. in % vom Umsatz) | H25: 45,000.00 € | I25: 0
B26: + | C26: Zinsen p.a. | H26: 7,000.00 € | I26: 0
B27: + | C27: Privatentnahmen (kalkulatorischer Unternehmerlohn) p.a. | H27: 60,000.00 € | I27: 0
B28: = | C28: Summe | H28: =SUM(H24:H27) -> 202,000.00 € | I28: 0
B29: : | C29: 365 Tage = €/Tag | H29: =H28/360 -> 561.11 € | I29: 0
B30: x | C30: durchschnittliche Dauer (Tage) Produktion/Verkauf | H30: 20 Tage | I30: 0 Tage
B32: = | C32: Kapitalbedarf zur Vorfinanzierung betrieblicher und privater Kosten | H32: =H29*H30 -> 11,222.22 € | I32: =I30*I29 -> 0
C33: Geplanter Umsatz | H33: 478,000.00 € | I33: 0
B34: - | C34: Barverkäufe | H34: 120,000.00 € | I34: 0
B35: = | C35: Verkäufe auf Rechnung (Ziel) | H35: =H33-H34 -> 358,000.00 € | I35: =I33-I34 -> 0
B36: : | C36: 360 Tage = €/Tag | H36: =H35/360 -> 994.44 € | I36: =I35/360 -> 0
B37: x | C37: durchschnittliches Zahlungsziel der Kunden (Tage) | H37: 30 Tage | I37: 0 Tage
B38: = | C38: Kapitalbedarf zur Vorfinanzierung der Außenstände | H38: =H37*H36 -> 29,833.33 € | I38: =I37*I36 -> 0
C39: Gesamter Kapitalbedarf | H39: =H38+H32+H19+H11 -> 220,055.56 € | I39: =I38+I32+I19+I11 -> 0

Sheet Kosten- und Umsatzplan
B2: Kostenplan
B4: Personalkosten
B5: Für Mitarbeiter mit gleichem Lohn oder Gehalt brauchen Sie folgende Berechnung
B6: nur einmal aufzustellen. Das erste Beispiel in der Checkliste ist eine Berechnung für
B7: Bezahlung nach Stunden, das zweite für die Zahlung eines Monatsgehaltes.
B9: Stundenlohn | H9: Beispiel | I9: Ihre Zahlen
C10: Anzahl Mitarbeiter | H10: 2.00
C11: Stundenlohn | H11: 9.00 €
C12: Stunden p.M. | H12: 160.00
C13: Anzahl Monate | H13: 12.00
C14: = Lohn p.a. | H14: =H10*H11*H12*H13 -> 34,560.00 € | I14: =I10*I11*I12*I13 -> 0
B15: + | C15: Weihnachtsgeld (je Mitarbeiter) | H15: 1,000.00 €
B16: + | C16: Urlaubsgeld (je Mitarbeiter) | H16: 1,000.00 €
B17: + | C17: vermögenswirksame Leistungen (pro Monat und Mitarbeiter) | H17: 26.00 €
B18: = | C18: Jahresbruttolohn | H18: =H14+(H15+H16)*H10+H17*H13*H10 -> 39,184.00 € | I18: =I14+(I15+I16)*I10+I17*I13*I10 -> 0
B19: + | C19: gesetzliche soziale Aufwendung in % v. Bruttolohn | H19: 23.00%
B20: + | C20: freiwillige Sozialleistungen je Mitarbeiter und Jahr | H20: 230.00 €
B21: = | C21: Personalkosten je Mitarbeiter | H21: =H22/H10 -> 24,328.16 € | I21: =IF(I10=0,"",I22/I10) -> 
B22: = | C22: Personalkosten | H22: =H18*(1+H19)+H20*H10 -> 48,656.32 € | I22: =I18*(1+I19)+I20*I10 -> 0
B26: Monatslohn | H26: Beispiel | I26: Ihre Zahlen
C27: Anzahl Mitarbeiter | H27: 2.00 €
C28: Monatliche Lohnsumme (alle Mitarbeiter) | H28: 3,850.00 €
C29: Anzahl Gehälter pro Jahr | H29: 13.50
C30: Lohnnebenkosten in % vom Lohn (gesetzliche und freiwillige Sozialleistungen) | H30: 23.00%
B31: = | C31: Personalkosten je Mitarbeiter | H31: =H32/H27 -> 31,964.63 € | I31: =IF(I27=0,"",I32/I27) -> 
B32: = | C32: Personalkosten | H32: =H28*H29*(1+H30) -> 63,929.25 € | I32: =I28*I29*(1+I30) -> 0
B36: Sachgemeinkosten | H36: Beispiel | I36: Ihre Zahlen
C37: Miete, Pacht, Heizung | H37: 9,600.00 € | I37: 0
C38: Gas, Strom, Wasser, Gemeinde | H38: 3,200.00 € | I38: 0
C39: Versicherungen, Steuern, Beiträge | H39: 2,400.00 € | I39: 0
C40: Fahrzeugkosten | H40: 7,500.00 € | I40: 0
C41: Werbung, Reisekosten, Repräsentation | H41: 5,500.00 € | I41: 0
C42: Instandhaltung, Maschinen und Geräte | H42: 3,000.00 € | I42: 0
C43: Bürobedarf, Telefon | H43: 4,200.00 € | I43: 0
C44: Steuerberatung, Rechtsberatung, Buchführung | H44: 3,500.00 € | I44: 0
C45: sonstige Kosten | H45: 3,100.00 € | I45: 0
B47: = | C47: Sachgemeinkosten gesamt | H47: =SUM(H37:H45) -> 42,000.00 € | I47: =SUM(I37:I45) -> 0
B48: Planen Sie bei den Sachgemeinkosten großzügig mit ausreichenden Reserven.
B49: Bei Betriebsgründungen wird sehr häufig die Höhe dieser Sachkosten unterschätzt,
B50: oder es werden einige wichtige Sachkosten (Gemeinkosten) einfach vergessen.
B52: Zinsen
H53: Beispiel | I53: Ihre Zahlen
C54: Durchschnittliche Darlehns- und KK-Inanspruchnahme | H54: 150,000.00 €
C55: Durchschnittlicher Zinssatz | H55: 7.00%
B56: = | C56: Zinsaufwand p.a. | H56: =H55*H54 -> 10,500.00 € | I56: =I55*I54 -> 0
B58: Abschreibungen
B59: Die Kosten für den Wertverlust Ihrer Investitionen (Abschreibungen) ermitteln Sie so:
B60: Anschaffungskosten geteilt durch durchschnittliche Nutzungsdauer (in Jahren) | H60: Beispiel | I60: Ihre Zahlen
C61: Anschaffungskosten | H61: 99,000.00 € | I61: 0
C62: durchschnittlich Nutzungsdauer in Jahren | H62: 6.60 Jahre
H63: =H61/H62 -> 15,000.00 € | I63: =IF(I62=0,"",I61/I62) -> 
B65: Kalkulatorische Kosten
B66: Kalkulatorische Kosten sind Kosten, die Sie kalkulieren und auch berechnen müssen,
B67: die aber in der Gewinn- und Verlustrechnung Ihres Betriebes steuerlich nicht als Kosten
B68: anerkannt sind. Zum Beispiel: | E68: -Kalkulatorischer Unternehmerlohn
E69: -Kalkulatorische Miete für eigene Räume, die Sie betrieblich nutzen
E70: -Kalkulatorische Abschreibung (über die tatsächliche Abschreibung hinaus)
E71: -Kalkulatorische Zinsen auf das Eigenkapital
B73: Kalkulatorischer Unternehmerlohn | H73: Beispiel | I73: Ihre Zahlen
C74: Einkommensteuer | H74: 7,000.00 € | I74: 0
C75: Krankenversicherung | H75: 3,000.00 € | I75: 0
C76: Rentenversicherung | H76: 4,000.00 € | I76: 0
C77: Lebensversicherung | H77: 3,000.00 € | I77: 0
C78: private Miete | H78: 10,000.00 € | I78: 0
C79: Lebensunterhalt | H79: 18,000.00 € | I79: 0
C80: Sonstiges | H80: 6,000.00 €
C81: kalkulatorischer Unternehmerlohn | H81: =SUM(H74:H80) -> 51,000.00 € | I81: =SUM(I74:I80) -> 0
H83: Beispiel | I83: Ihre Zahlen
B84: kalkulatorischer Unternehmerlohn | H84: =H81 -> 51,000.00 € | I84: =SUM(I74:I79) -> 0
B85: + | C85: sonstige kalkulatorische Kosten | H85: 8,000.00 € | I85: 0
B87: = | C87: Summer der kalkulatorischen Kosten | H87: =SUM(H84:H86) -> 59,000.00 € | I87: =SUM(I84:I85) -> 0
B90: Gesamtkosten des Betriebes
B91: Jetzt können Sie die Gesamtkosten Ihres Betriebes aufstellen: | H91: Beispiel | I91: Ihre Zahlen
B92: Personalkosten | H92: =H22+H32 -> 112,585.57 € | I92: =I32+I22 -> 0
B93: Sachgemeinkosten | H93: =H47 -> 42,000.00 € | I93: =I47 -> 0
B94: Zinsen | H94: =H56 -> 10,500.00 € | I94: =I56 -> 0
B95: Abschreibungen | H95: =H63 -> 15,000.00 € | I95: =I63 -> 
B96: kalkulatorische Kosten | H96: =H87 -> 59,000.00 € | I96: =I87 -> 0
B98: Kosten gesamt | H98: =SUM(H92:H97) -> 239,085.57 € | I98: =SUM(I92:I97) -> 0
B101: Wenn Sie Ihre Fixkosten kennen, können Sie mit dieser Formel ermitteln, wie viel Umsatz Sie machen müssen, um die Fixkosten zu decken. Sie brauchen hierzu den für Ihre Branche typischen Rohgewinn in % vom Umsatz. Fragen Sie Ihren Firmenkundenbetreuer, Ste
B105: Für Mitarbeiter mit gleichem Lohn oder Gehalt brauchen Sie folgende Berechnung
B106: nur einmal aufzustellen. Das erste Beispiel in der Checkliste ist eine Berechnung für
B107: Bezahlung nach Stunden, das zweite für die Zahlung eines Monatsgehaltes.
B109: Stundenlohn | H109: Beispiel | I109: Ihre Zahlen
B110: € 9,- Lohn * 165 Stunden * 12 Monate | H110: =9*165*12 -> 17820 | I110: 0
B111: + | C111: Weihnachtsgeld, Urlaubsgeld | H111: =H110*0.1 -> 1782 | I111: 0
B112: + | C112: vermögenswirksame Leistungen | H112: 480 | I112: 0
B113: = | C113: Jahresbruttolohn | H113: =H110+H111+H112 -> 20082 | I113: =I110+I111+I112 -> 0
B114: + | C114: gesetzliche soziale Aufwendung | F114: 0.23 | G114: v. Bruttolohn | H114: =H113*F114 -> 4618.86 | I114: =I113*F114 -> 0
B115: + | C115: freiwillige Sozialleistungen | H115: 230.00 € | I115: 0
B117: = | C117: Personalkosten für einen Facharbeiter | H117: =H113+H114+H115 -> 24,930.86 € | I117: =I113+I114+I115 -> 0
B118: x | C118: Anzahl Mitarbeiter | H118: 2.00 | I118: 0.00
B119: = | C119: Lohnkosten p.a. | H119: =H118*H117 -> 49,861.72 € | I119: =I118*I117 -> 0
B123: Monatslohn | F123: Beispiel | G123: Ihre Zahlen | H123: Beispiel | I123: Ihre Zahlen
B124: Monatsgehalt | F124: 1,350.00 | G124: 1,480.00 € | H124: =12*1350 -> 16,200.00 € | I124: =12*G124 -> 17,760.00 €
B125: + | C125: Weihnachtsgeld (= Anzahl Monatsgehälter) | F125: 1.50 | G125: 1.25 x | H125: =H124/12*F125 -> 2,025.00 € | I125: =I124/12*G125 -> 1,850.00 €
B126: + | C126: Urlaubsgeld | F126: 1.00 | G126: 0.50 x | H126: =H124/12*F126 -> 1,350.00 € | I126: =I124/12*G126 -> 740.00 €
B127: = | C127: Gehälter pro Jahr | F127: 13,5 x 1.350 € | G127: =12+G126+G125 -> 13.75 x | H127: =H124+H125+H126 -> 19,575.00 € | I127: =I124+I125+I126 -> 20,350.00 €
B128: + | C128: Lohnnebenkosten | E128: 23% | F128: des Jahresgehaltes | G128: =E128 -> 23% | H128: =H127*E128 -> 4,502.25 € | I128: =I127*G128 -> 4,680.50 €
B130: = | C130: zu bezahlen pro Jahr | H130: =H127+H128 -> 24,077.25 € | I130: =I127+I128 -> 25,030.50 €
B131: x | C131: Anzahl Mitarbeiter | H131: 1.00 | I131: 0.00
B132: = | C132: Gehaltskosten p.a. | H132: =H131*H130 -> 24,077.25 € | I132: =I131*I130 -> 0
B134: Sachgemeinkosten | H134: Beispiel | I134: Ihre Zahlen
B135: Miete, Pacht, Heizung | H135: 9,600.00 € | I135: 0
B136: Gas, Strom, Wasser, Gemeinde | H136: 3,200.00 € | I136: 0
B137: Versicherungen, Steuern, Beiträge | H137: 2,400.00 € | I137: 0
B138: Fahrzeugkosten | H138: 7,500.00 € | I138: 0
B139: Werbung, Reisekosten, Repräsentation | H139: 5,500.00 € | I139: 0
B140: Instandhaltung, Maschinen und Geräte | H140: 3,000.00 € | I140: 0
B141: Bürobedarf, Telefon | H141: 4,200.00 € | I141: 0
B142: Steuerberatung, Rechtsberatung, Buchführung | H142: 3,500.00 € | I142: 0
B143: sonstige Kosten | H143: 3,100.00 € | I143: 0
B145: Sachgemeinkosten gesamt | H145: =SUM(H135:H143) -> 42,000.00 € | I145: =SUM(I135:I143) -> 0
B146: Planen Sie bei den Sachgemeinkosten großzügig mit ausreichenden Reserven.
B147: Bei Betriebsgründungen wird sehr häufig die Höhe dieser Sachkosten unterschätzt,
B148: oder es werden einige wichtige Sachkosten (Gemeinkosten) einfach vergessen.
B150: Zinsen
H151: Beispiel | I151: Ihre Zahlen
B152: Durchschnittliche Darlehns- und KK-Inanspruchnahme | H152: 150,000.00 €
B153: Durchschnittlicher Zinssatz | H153: 7.00%
G154: Ergebnis= | H154: =H153*H152 -> 10,500.00 € | I154: =I153*I152 -> 0
B156: Abschreibungen
B157: Die Kosten für den Wertverlust Ihrer Investitionen (Abschreibungen) ermitteln Sie so:
H158: Beispiel | I158: Ihre Zahlen
C159: Anschaffungskosten | E159: = Abschreibung in €/Jahr | H159: 99,000.00 € | I159: 0
B160: durchschn. Nutzungsdauer | H160: 6.60 Jahre | I160: 5.00 Jahre
G161: Ergebnis= | H161: =H159/H160 -> 15,000.00 € | I161: =I159/I160 -> 0
B163: Kalkulatorische Kosten
B164: Kalkulatorische Kosten sind Kosten, die Sie kalkulieren und auch berechnen müssen,
B165: die aber in der Gewinn- und Verlustrechnung Ihres Betriebes steuerlich nicht als Kosten
B166: anerkannt sind. Zum Beispiel: | E166: -Kalkulatorischer Unternehmerlohn
E167: -Kalkulatorische Miete für eigene Räume, die Sie betrieblich nutzen
E168: -Kalkulatorische Abschreibung (über die tatsächliche Abschreibung hinaus)
E169: -Kalkulatorische Zinsen auf das Eigenkapital
C171: Kalkulatorischer Unternehmerlohn | H171: Beispiel | I171: Ihre Zahlen
B172: Einkommensteuer | H172: 7,000.00 € | I172: 0
B173: Krankenversicherung | H173: 3,000.00 € | I173: 0
B174: Rentenversicherung | H174: 4,000.00 € | I174: 0
B175: Lebensversicherung | H175: 3,000.00 € | I175: 0
B176: private Miete | H176: 10,000.00 € | I176: 0
B177: Lebensunterhalt | H177: 18,000.00 € | I177: 0
B178: Sonstiges | H178: 6,000.00 €
B179: kalkulatorischer Unternehmerlohn | H179: =SUM(H172:H178) -> 51,000.00 € | I179: =SUM(I172:I178) -> 0
H181: Beispiel | I181: Ihre Zahlen
B182: kalkulatorischer Unternehmerlohn | H182: =H179 -> 51,000.00 € | I182: =SUM(I172:I177) -> 0
B183: + | C183: sonstige kalkulatorische Kosten | H183: 8,000.00 € | I183: 0
B185: = | C185: Summer der kalkulatorischen Kosten | H185: =SUM(H182:H184) -> 59,000.00 € | I185: =SUM(I182:I183) -> 0
B188: Gesamtkosten des Betriebes
B189: Jetzt können Sie die Gesamtkosten Ihres Betriebes aufstellen: | H189: Beispiel | I189: Ihre Zahlen
B190: Personalkosten | H190: =H119+H132 -> 73,938.97 € | I190: =I119+I132 -> 0
B191: Sachgemeinkosten | H191: =H145 -> 42,000.00 € | I191: =I145 -> 0
B192: Zinsen | H192: =H154 -> 10,500.00 € | I192: =I154 -> 0
B193: Abschreibungen | H193: =H161 -> 15,000.00 € | I193: =I161 -> 0
B194: kalkulatorische Kosten | H194: =H185 -> 59,000.00 € | I194: =I185 -> 0
B196: Kosten gesamt | H196: =SUM(H190:H195) -> 200,438.97 € | I196: =SUM(I190:I195) -> 0
B198: Formel den Mindestumsatz:
H199: Beispiel | I199: Ihre Zahlen
B200: Fixkosten in € | G200: =H98 -> 239,085.57 € | H200: =G200/G201 -> 508,692.70 € | I200: =I98 -> 0
B201: Prozentsatz Rohgewinn | G201: 47% | I201: 40%
H202: Ergebnis= | I202: =IF(I201=0,"",IF(I201="","",I200/I201)) -> 0
B204: Prüfen Sie nun mit Ihrer Marktkenntnis unter Berücksichtigung den betrieblichen
B205: Voraussetzungen (Standort, Kapazität, usw.), ob sich dieser rechnerisch ermittelte
B206: (theoretische) Umsatz auch in der Wirklichkeit erreichen läßt.

Sheet Liquiditätsplan
B2: Liquiditätsübersicht in T€ | F2: Hinweis: Alle Zahlen sind grundsätzlich mit positivem Vorzeichen zu erfassen!
B3: per
B4: =TODAY() -> 2016-01-24 | E4: 01. | F4: 02. | G4: 03. | H4: 04. | I4: 05. | J4: 06. | K4: 07. | L4: 08. | M4: 09. | N4: 10. | O4: 11. | P4: 12.
D5: Heute | E5: Planmonat | F5: Planmonat | G5: Planmonat | H5: Planmonat | I5: Planmonat | J5: Planmonat | K5: Planmonat | L5: Planmonat | M5: Planmonat | N5: Planmonat | O5: Planmonat | P5: Planmonat
B6: Bitte nur weiße Felder ausfüllen! | D6: =TODAY() -> 2016-01-24 | E6: =EOMONTH($D6,0) -> 2016-01-31 | F6: =EOMONTH($D6,F4-1) -> 2016-02-29 | G6: 2016-03-31 | H6: 2016-04-30 | I6: 2016-05-31 | J6: 2016-06-30 | K6: 2016-07-31 | L6: 2016-08-31 | M6: 2016-09-30 | N6: 2016-10-31 | O6: 2016-11-30 | P6: 2016-12-31
B7: 1. Liquiditätsreserve | D7: =D8+D9+D10+D11-D12 -> 0 T€ | E7: =D7+E14-E30 -> 0 T€ | F7: 0 T€ | G7: 0 T€ | H7: 0 T€ | I7: 0 T€ | J7: 0 T€ | K7: 0 T€ | L7: 0 T€ | M7: 0 T€ | N7: 0 T€ | O7: 0 T€ | P7: 0 T€
B8: Kasse | D8: 0 T€ | E8: =D8+E15-E40 -> 0 T€ | F8: 0 T€ | G8: 0 T€ | H8: 0 T€ | I8: 0 T€ | J8: 0 T€ | K8: 0 T€ | L8: 0 T€ | M8: 0 T€ | N8: 0 T€ | O8: 0 T€ | P8: 0 T€
B9: Bankguthaben | D9: 0 T€
B10: andere kurzfr. Geldanlagen | D10: 0 T€
B11: KK-Linien (brutto) | D11: 0 T€ | E11: =D11-E62+E20 -> 0 T€ | F11: 0 T€ | G11: 0 T€ | H11: 0 T€ | I11: 0 T€ | J11: 0 T€ | K11: 0 T€ | L11: 0 T€ | M11: 0 T€ | N11: 0 T€ | O11: 0 T€ | P11: 0 T€
B12: KK-Inanspruchnahmen | D12: 0 T€
B13: Banksaldo (netto) | D13: =D7-D8-D11 -> 0 T€ | E13: 0 T€ | F13: 0 T€ | G13: 0 T€ | H13: 0 T€ | I13: 0 T€ | J13: 0 T€ | K13: 0 T€ | L13: 0 T€ | M13: 0 T€ | N13: 0 T€ | O13: 0 T€ | P13: 0 T€
B14: 2. Liquiditätszugang | E14: =SUM(E15:E26) -> 0 T€ | F14: 0 T€ | G14: 0 T€ | H14: 0 T€ | I14: 0 T€ | J14: 0 T€ | K14: 0 T€ | L14: 0 T€ | M14: 0 T€ | N14: 0 T€ | O14: 0 T€ | P14: 0 T€
B15: Barverkäufe
B16: Kundenzahlungen
B17: An- und Vorauszahlungen
B18: Verkauf von Anlagevermögen
B19: Auszahlung von Darlehen
B20: Erhöhung KK-Linie
B21: Einzahlung von EK
B22: Sale & Lease Back-Zahlungen
B23: Steuererstattungen
B24: Bonuszahlungen
B25: Versicherungsleistungen
B26: Sonstige Liquiditätszugänge
B28: Liquidität vor Ausgaben | E28: =D7+E14 -> 0 T€ | F28: 0 T€ | G28: 0 T€ | H28: 0 T€ | I28: 0 T€ | J28: 0 T€ | K28: 0 T€ | L28: 0 T€ | M28: 0 T€ | N28: 0 T€ | O28: 0 T€ | P28: 0 T€
B30: 3. Liquiditätsentzug | E30: =SUM(E31:E62) -> 0 T€ | F30: 0 T€ | G30: 0 T€ | H30: 0 T€ | I30: 0 T€ | J30: 0 T€ | K30: 0 T€ | L30: 0 T€ | M30: 0 T€ | N30: 0 T€ | O30: 0 T€ | P30: 0 T€
B31: Löhne und Gehälter netto
B32: Urlaubs- / Weihnachsgeld
B33: Lohnsteuerabführung
B34: Krankenkasse
B35: Berufsgenossenschaft
B36: Rentenversicherung
B37: Arbeitslosenversicherung
B38: Vermögenswirksame Leistungen
B39: Sonstige freiw. soziale Aufwendungen
B40: Lieferanten bar
B41: Lieferanten Konto
B42: Wechselfälligkeiten
B43: Kapitaldienst Darlehen einschl. LV-Prämien
B44: Zinsen KKK, sonstige
B45: Leasingraten u.ä.
B46: Miete
B47: Strom
B48: Gas / Öl etc.
B49: Gemeindeabgaben
B50: Mehrwertsteuer
B51: Gewerbesteuer
B52: Körperschaftsteuer
B53: Sonstige Steuer
B54: Versicherungen
B55: Privatentnahmen
B56: Anschaffungen
B57: Anschaffungen
B58: Anschaffungen
B59: sonstige Ausgaben
B60: sonstige Ausgaben
B61: sonstige Ausgaben
B62: Kürzung KK-Linie
B63: Geplante Reserve
B65: 4. Überschuß (+) / Fehlbetrag (-) | E65: =E14-E30 -> 0 T€ | F65: 0 T€ | G65: 0 T€ | H65: 0 T€ | I65: 0 T€ | J65: 0 T€ | K65: 0 T€ | L65: 0 T€ | M65: 0 T€ | N65: 0 T€ | O65: 0 T€ | P65: 0 T€
B100: Liquiditätsübersicht in T€ | F100: Hinweis: Alle Zahlen sind grundsätzlich mit positivem Vorzeichen zu erfassen!
B101: per
B102: =TODAY() -> 2016-01-24 | E102: 01. | F102: 02. | G102: 03. | H102: 04. | I102: 05. | J102: 06. | K102: 07. | L102: 08. | M102: 09. | N102: 10. | O102: 11. | P102: 12.
D103: Heute | E103: Planmonat | F103: Planmonat | G103: Planmonat | H103: Planmonat | I103: Planmonat | J103: Planmonat | K103: Planmonat | L103: Planmonat | M103: Planmonat | N103: Planmonat | O103: Planmonat | P103: Planmonat
B104: Bitte nur weiße Felder ausfüllen! | D104: =TODAY() -> 2016-01-24 | E104: =EOMONTH($D104,0) -> 2016-01-31 | F104: =EOMONTH($D104,F102-1) -> 2016-02-29 | G104: 2016-03-31 | H104: 2016-04-30 | I104: 2016-05-31 | J104: 2016-06-30 | K104: 2016-07-31 | L104: 2016-08-31 | M104: 2016-09-30 | N104: 2016-10-31 | O104: 2016-11-30 | P104: 2016-12-31
B105: 1. Liquiditätsreserve | D105: =D106+D107+D108+D109-D110 -> -€ 76.00 | E105: =D105+E112-E128 -> -€ 63.00
B106: Kasse | D106: 1.00 € | E106: =D106+E113-E138 -> 9.00 € | F106: =E106 -> 9.00 € | G106: 9.00 € | H106: 9.00 € | I106: 9.00 € | J106: 9.00 € | K106: 9.00 € | L106: 9.00 € | M106: 9.00 € | N106: 9.00 € | O106: 9.00 € | P106: 9.00 €
B107: Bankguthaben | D107: 0
B108: andere kurzfr. Geldanlagen | D108: 0
B109: KK-Linien (brutto) | D109: 153.00 € | E109: =D109 -> 153.00 € | F109: =E109-F160+F118 -> 153.00 € | G109: 153.00 € | H109: 153.00 € | I109: 153.00 € | J109: 153.00 € | K109: 153.00 € | L109: 153.00 € | M109: 153.00 € | N109: 153.00 € | O109: 153.00 € | P109: 153.00 €
B110: KK-Inanspruchnahmen | D110: 230.00 €
B111: Banksaldo (netto) | D111: =D105-D106-D109 -> -€ 230.00 | E111: -€ 225.00
B112: 2. Liquiditätszugang | E112: =SUM(E113:E124) -> 65.00 € | F112: 65.00 € | G112: 65.00 € | H112: 65.00 € | I112: 65.00 € | J112: 65.00 € | K112: 65.00 € | L112: 65.00 € | M112: 65.00 € | N112: 65.00 € | O112: 65.00 € | P112: 65.00 €
B113: Barverkäufe | E113: 10.00 € | F113: =E113 -> 10.00 € | G113: 10.00 € | H113: 10.00 € | I113: 10.00 € | J113: 10.00 € | K113: 10.00 € | L113: 10.00 € | M113: 10.00 € | N113: 10.00 € | O113: 10.00 € | P113: 10.00 €
B114: Kundenzahlungen | E114: 50.00 € | F114: =E114 -> 50.00 € | G114: 50.00 € | H114: 50.00 € | I114: 50.00 € | J114: 50.00 € | K114: 50.00 € | L114: 50.00 € | M114: 50.00 € | N114: 50.00 € | O114: 50.00 € | P114: 50.00 €
B115: An- und Vorauszahlungen | E115: 5.00 € | F115: =E115 -> 5.00 € | G115: 5.00 € | H115: 5.00 € | I115: 5.00 € | J115: 5.00 € | K115: 5.00 € | L115: 5.00 € | M115: 5.00 € | N115: 5.00 € | O115: 5.00 € | P115: 5.00 €
B116: Verkauf von Anlagevermögen
B117: Auszahlung von Darlehen
B118: Erhöhung KK-Linie
B119: Einzahlung von EK
B120: Sale & Lease Back-Zahlungen
B121: Steuererstattungen
B122: Bonuszahlungen
B123: Versicherungsleistungen
B124: Sonstige Liquiditätszugänge
B126: Liquidität vor Ausgaben | E126: =D105+E112 -> -€ 11.00 | F126: € 2.00
B128: 3. Liquiditätsentzug | E128: =SUM(E129:E160) -> 52.00 €
B129: Löhne und Gehälter netto | E129: 10.00 € | F129: =E129 -> 10.00 € | G129: 10.00 € | H129: 10.00 € | I129: 10.00 € | J129: 10.00 € | K129: 10.00 € | L129: 10.00 € | M129: 10.00 € | N129: 10.00 € | O129: 10.00 € | P129: 10.00 €
B130: Urlaubs- / Weihnachsgeld
B131: Lohnsteuerabführung | F131: =E131/E$31*F$31 -> 
B132: Krankenkasse | F132: =E132/E$31*F$31 -> 
B133: Berufsgenossenschaft | F133: =E133/E$31*F$31 -> 
B134: Rentenversicherung | F134: =E134/E$31*F$31 -> 
B135: Arbeitslosenversicherung | F135: =E135/E$31*F$31 -> 
B136: Vermögenswirksame Leistungen | F136: =E136/E$31*F$31 -> 
B137: Sonstige freiw. soziale Aufwendungen
B138: Lieferanten bar | E138: 2.00 € | F138: =E138 -> 2.00 € | G138: 2.00 € | H138: 2.00 € | I138: 2.00 € | J138: 2.00 € | K138: 2.00 € | L138: 2.00 € | M138: 2.00 € | N138: 2.00 € | O138: 2.00 € | P138: 2.00 €
B139: Lieferanten Konto | E139: 35.00 € | F139: =E139 -> 35.00 € | G139: 35.00 € | H139: 35.00 € | I139: 35.00 € | J139: 35.00 € | K139: 35.00 € | L139: 35.00 € | M139: 35.00 € | N139: 35.00 € | O139: 35.00 € | P139: 35.00 €
B140: Wechselfälligkeiten
B141: Kapitaldienst Darlehen einschl. LV-Prämien
B142: Zinsen KKK, sonstige
B143: Leasingraten u.ä. | E143: 2.00 € | F143: =E143 -> 2.00 € | G143: 2.00 € | H143: 2.00 € | I143: 2.00 € | J143: 2.00 € | K143: 2.00 € | L143: 2.00 € | M143: 2.00 € | N143: 2.00 € | O143: 2.00 € | P143: 2.00 €
B144: Miete | E144: 3.00 € | F144: =E144 -> 3.00 € | G144: 3.00 € | H144: 3.00 € | I144: 3.00 € | J144: 3.00 € | K144: 3.00 € | L144: 3.00 € | M144: 3.00 € | N144: 3.00 € | O144: 3.00 € | P144: 3.00 €
B145: Strom
B146: Gas / Öl etc.
B147: Gemeindeabgaben
B148: Mehrwertsteuer
B149: Gewerbesteuer
B150: Körperschaftsteuer
B151: Sonstige Steuer
B152: Versicherungen
B153: Privatentnahmen
B154: Anschaffungen
B155: Anschaffungen
B156: Anschaffungen
B157: sonstige Ausgaben
B158: sonstige Ausgaben
B159: sonstige Ausgaben
B160: Kürzung KK-Linie
B161: Geplante Reserve
B163: 4. Überschuß (+) / Fehlbetrag (-) | E163: =E112-E128 -> € 13.00

Sheet Ratenkreditrechner
A1: Auszahlungsdatum | B1: =TODAY()+14 -> 2016-02-07
A2: Gesamtlaufzeit (Jahre) | B2: 20 Jahre
A3: Zinsbindung | B3: 10 Jahre
A4: Zinssatz | B4: 2.7500%
A5: Erste Tilgung in … Jahren: | B5: 0.25 Jahre | N5: monatlich
A6: Zahlungsintervall | B6: vierteljährlich | N6: vierteljährlich
A7: Kreditbetrag | B7: 600,000 | N7: halbjährlich
A8: Modus | B8: =IF(B6=N5,1,IF(B6=N6,3,IF(B6=N7,6,12))) -> 3 | N8: jährlich
A9: Zinsbindung bis | B9: =EDATE(B1,B3*12) -> 2026-02-07
A10: Tilgungsjahre | B10: =B2-B5 -> 20 Jahre
A11: Anzahl Raten pro Jahr | B11: =12/B8 -> 4
A12: Tilgungsrate | B12: =B7/B10/B11 -> 7,595 | J12: =1083264.4-509216.2 -> 574048.2
A13: Tilgungsstart | B13: =EDATE(B1,12*B5) -> 2016-05-07
A21: =MAX(A23:A622) -> 2025-11-07 | B21: =MAX(B23:B622) -> -303,797.47 | C21: =SUM(C24:C5000) -> 296,202.5 | D21: =SUM(D24:D5000) -> 123,946.7 | E21: =SUM(E24:E5000) -> 420,149.2
A22: Datum | B22: Saldo | C22: Tilgung | D22: Zinsen | E22: Gesamtrate
A23: =B1 -> 2016-02-07 | B23: =-B7 -> -600,000 | C23: =IF(A23="","",IF(A23<B$13,"",B$12)) -> 
A24: =IF(A23="","",IF(EDATE(A23,$B$8)>EDATE(B$9,-$B$8),"",EDATE(A23,$B$8))) -> 2016-05-07 | B24: =IF(A24="","",IF(C24="",B23,B23+C24)) -> -592,405 | C24: =IF(A24="","",IF(A24<B$13,"",B$12)) -> 7,594.9 | D24: =IF(A24="","",-B23*B$4*(A24-A23)/360) -> 4,125.0 | E24: =IF(A24="","",IF(C24="",D24,D24+C24)) -> 11,719.9
A25: 2016-08-07 | B25: =IF(A25="","",IF(C25="",B24,B24+C25)) -> -584,810 | C25: =IF(A25="","",IF(A25<B$13,"",B$12)) -> 7,594.9 | D25: =IF(A25="","",-B24*B$4*(A25-A24)/360) -> 4,163.3 | E25: =IF(A25="","",IF(C25="",D25,D25+C25)) -> 11,758.2
A26: 2016-11-07 | B26: -577,215 | C26: 7,594.9 | D26: 4,109.9 | E26: 11,704.9
A27: 2017-02-07 | B27: -569,620 | C27: 7,594.9 | D27: 4,056.5 | E27: 11,651.5
A28: 2017-05-07 | B28: -562,025 | C28: 7,594.9 | D28: 3,872.6 | E28: 11,467.6
A29: 2017-08-07 | B29: -554,430 | C29: 7,594.9 | D29: 3,949.8 | E29: 11,544.7
A30: 2017-11-07 | B30: -546,835 | C30: 7,594.9 | D30: 3,896.4 | E30: 11,491.4
A31: 2018-02-07 | B31: -539,241 | C31: 7,594.9 | D31: 3,843.0 | E31: 11,438.0
A32: 2018-05-07 | B32: -531,646 | C32: 7,594.9 | D32: 3,666.1 | E32: 11,261.0
A33: 2018-08-07 | B33: -524,051 | C33: 7,594.9 | D33: 3,736.3 | E33: 11,331.2
A34: 2018-11-07 | B34: -516,456 | C34: 7,594.9 | D34: 3,682.9 | E34: 11,277.8
A35: 2019-02-07 | B35: -508,861 | C35: 7,594.9 | D35: 3,629.5 | E35: 11,224.5
A36: 2019-05-07 | B36: -501,266 | C36: 7,594.9 | D36: 3,459.5 | E36: 11,054.5
A37: 2019-08-07 | B37: -493,671 | C37: 7,594.9 | D37: 3,522.8 | E37: 11,117.7
A38: 2019-11-07 | B38: -486,076 | C38: 7,594.9 | D38: 3,469.4 | E38: 11,064.3
A39: 2020-02-07 | B39: -478,481 | C39: 7,594.9 | D39: 3,416.0 | E39: 11,011.0
A40: 2020-05-07 | B40: -470,886 | C40: 7,594.9 | D40: 3,289.6 | E40: 10,884.5
A41: 2020-08-07 | B41: -463,291 | C41: 7,594.9 | D41: 3,309.3 | E41: 10,904.2
A42: 2020-11-07 | B42: -455,696 | C42: 7,594.9 | D42: 3,255.9 | E42: 10,850.8
A43: 2021-02-07 | B43: -448,101 | C43: 7,594.9 | D43: 3,202.5 | E43: 10,797.5
A44: 2021-05-07 | B44: -440,506 | C44: 7,594.9 | D44: 3,046.5 | E44: 10,641.4
A45: 2021-08-07 | B45: -432,911 | C45: 7,594.9 | D45: 3,095.8 | E45: 10,690.7
A46: 2021-11-07 | B46: -425,316 | C46: 7,594.9 | D46: 3,042.4 | E46: 10,637.3
A47: 2022-02-07 | B47: -417,722 | C47: 7,594.9 | D47: 2,989.0 | E47: 10,584.0
A48: 2022-05-07 | B48: -410,127 | C48: 7,594.9 | D48: 2,839.9 | E48: 10,434.9
A49: 2022-08-07 | B49: -402,532 | C49: 7,594.9 | D49: 2,882.3 | E49: 10,477.2
A50: 2022-11-07 | B50: -394,937 | C50: 7,594.9 | D50: 2,828.9 | E50: 10,423.8
A51: 2023-02-07 | B51: -387,342 | C51: 7,594.9 | D51: 2,775.5 | E51: 10,370.5
A52: 2023-05-07 | B52: -379,747 | C52: 7,594.9 | D52: 2,633.4 | E52: 10,228.3
A53: 2023-08-07 | B53: -372,152 | C53: 7,594.9 | D53: 2,668.8 | E53: 10,263.7
A54: 2023-11-07 | B54: -364,557 | C54: 7,594.9 | D54: 2,615.4 | E54: 10,210.3
A55: 2024-02-07 | B55: -356,962 | C55: 7,594.9 | D55: 2,562.0 | E55: 10,157.0
A56: 2024-05-07 | B56: -349,367 | C56: 7,594.9 | D56: 2,454.1 | E56: 10,049.1
A57: 2024-08-07 | B57: -341,772 | C57: 7,594.9 | D57: 2,455.3 | E57: 10,050.2
A58: 2024-11-07 | B58: -334,177 | C58: 7,594.9 | D58: 2,401.9 | E58: 9,996.8
A59: 2025-02-07 | B59: -326,582 | C59: 7,594.9 | D59: 2,348.5 | E59: 9,943.5
A60: 2025-05-07 | B60: -318,987 | C60: 7,594.9 | D60: 2,220.3 | E60: 9,815.2
A61: 2025-08-07 | B61: -311,392 | C61: 7,594.9 | D61: 2,241.8 | E61: 9,836.7
A62: 2025-11-07 | B62: -303,797 | C62: 7,594.9 | D62: 2,188.4 | E62: 9,783.3
A88: =IF(A87="","",IF(EDATE(A87,$B$8)>EDATE(B$9,-$B$8),"",EDATE(A87,$B$8))) -> 
B89: =IF(A89="","",IF(C89="",B88,B88+C89)) ->  | C89: =IF(A89="","",IF(A89<B$13,"",B$12)) ->  | D89: =IF(A89="","",-B88*B$4*(A89-A88)/360) ->  | E89: =IF(A89="","",IF(C89="",D89,D89+C89)) -> 
A152: =IF(A151="","",IF(EDATE(A151,$B$8)>EDATE(B$9,-$B$8),"",EDATE(A151,$B$8))) -> 
B153: =IF(A153="","",IF(C153="",B152,B152+C153)) ->  | C153: =IF(A153="","",IF(A153<B$13,"",B$12)) ->  | D153: =IF(A153="","",-B152*B$4*(A153-A152)/360) ->  | E153: =IF(A153="","",IF(C153="",D153,D153+C153)) -> 
A216: =IF(A215="","",IF(EDATE(A215,$B$8)>EDATE(B$9,-$B$8),"",EDATE(A215,$B$8))) -> 
B217: =IF(A217="","",IF(C217="",B216,B216+C217)) ->  | C217: =IF(A217="","",IF(A217<B$13,"",B$12)) ->  | D217: =IF(A217="","",-B216*B$4*(A217-A216)/360) ->  | E217: =IF(A217="","",IF(C217="",D217,D217+C217)) -> 
D264: =IF(A264="","",B263*B$4*(A264-A263)/360) -> 
A280: =IF(A279="","",IF(EDATE(A279,$B$8)>EDATE(B$9,-$B$8),"",EDATE(A279,$B$8))) -> 
B281: =IF(A281="","",IF(C281="",B280,B280+C281)) ->  | C281: =IF(A281="","",IF(A281<B$13,"",B$12)) ->  | D281: =IF(A281="","",B280*B$4*(A281-A280)/360) ->  | E281: =IF(A281="","",IF(C281="",D281,D281+C281)) -> 
A344: =IF(A343="","",IF(EDATE(A343,$B$8)>EDATE(B$9,-$B$8),"",EDATE(A343,$B$8))) -> 
B345: =IF(A345="","",IF(C345="",B344,B344+C345)) ->  | C345: =IF(A345="","",IF(A345<B$13,"",B$12)) ->  | D345: =IF(A345="","",B344*B$4*(A345-A344)/360) ->  | E345: =IF(A345="","",IF(C345="",D345,D345+C345)) -> 
A408: =IF(A407="","",IF(EDATE(A407,$B$8)>EDATE(B$9,-$B$8),"",EDATE(A407,$B$8))) -> 
B409: =IF(A409="","",IF(C409="",B408,B408+C409)) ->  | C409: =IF(A409="","",IF(A409<B$13,"",B$12)) ->  | D409: =IF(A409="","",B408*B$4*(A409-A408)/360) ->  | E409: =IF(A409="","",IF(C409="",D409,D409+C409)) -> 
A472: =IF(A471="","",IF(EDATE(A471,$B$8)>EDATE(B$9,-$B$8),"",EDATE(A471,$B$8))) -> 
B473: =IF(A473="","",IF(C473="",B472,B472+C473)) ->  | C473: =IF(A473="","",IF(A473<B$13,"",B$12)) ->  | D473: =IF(A473="","",B472*B$4*(A473-A472)/360) ->  | E473: =IF(A473="","",IF(C473="",D473,D473+C473)) -> 
A536: =IF(A535="","",IF(EDATE(A535,$B$8)>EDATE(B$9,-$B$8),"",EDATE(A535,$B$8))) -> 
B537: =IF(A537="","",IF(C537="",B536,B536+C537)) ->  | C537: =IF(A537="","",IF(A537<B$13,"",B$12)) ->  | D537: =IF(A537="","",B536*B$4*(A537-A536)/360) ->  | E537: =IF(A537="","",IF(C537="",D537,D537+C537)) -> 
C597: =IF(A597="","",IF(A597<B$13,"",B$12)) ->  | D597: =IF(A597="","",B596*B$4*(A597-A596)/360) ->  | E597: =IF(A597="","",IF(C597="",D597,D597+C597)) -> 
C598: =IF(A598="","",IF(A598<B$13,"",B$12)) -> 
C599: =IF(A599="","",IF(A599<B$13,"",B$12)) -> 
A600: =IF(A599="","",IF(EDATE(A599,$B$8)>EDATE(B$9,-$B$8),"",EDATE(A599,$B$8))) ->  | C600: =IF(A600="","",IF(A600<B$13,"",B$12)) -> 
B601: =IF(A601="","",IF(C601="",B600,B600+C601)) -> 
A624: =IF(A623="","",IF(EDATE(A623,$B$8)>B$9,"",EDATE(A623,$B$8))) -> 
A656: =IF(A655="","",IF(EDATE(A655,$B$8)>B$9,"",EDATE(A655,$B$8))) -> 
A688: =IF(A687="","",IF(EDATE(A687,$B$8)>B$9,"",EDATE(A687,$B$8))) -> 
A720: =IF(A719="","",IF(EDATE(A719,$B$8)>B$9,"",EDATE(A719,$B$8))) -> 
A752: =IF(A751="","",IF(EDATE(A751,$B$8)>B$9,"",EDATE(A751,$B$8))) -> 

Sheet Annuitätenrechner
B1: Achten Sie auf die Vorzeichen!
B2: Berechnung der Restschuld | E2: Berechnung der Rate | H2: Berechnung des NomZins
B3: Kreditbetrag € | C3: 600,000.00 € | E3: Kreditbetrag € | F3: =C3 -> 600,000.00 € | H3: Kreditbetrag € | I3: =C3 -> 600,000.00 €
B4: Zinssatz nom. | C4: 2.75% | E4: Zinssatz nom. | F4: =C4 -> 2.75% | H4: Zinssatz nom. | I4: =RATE(I8,I5,I3,I9,I14)*I13 -> 2.75%
B5: Rate € | C5: -4,000.00 € | E5: Rate € | F5: =-PMT(F4/F13,F8,F3,F9,F14) -> 4,000.00 € | H5: Rate € | I5: =C5 -> -4,000.00 €
B6: Frequenz | C6: monatlich | E6: Frequenz | F6: =C6 -> monatlich | H6: Frequenz | I6: =C6 -> monatlich
B7: Verrechnung | C7: nachschüssig | E7: Verrechnung | F7: =C7 -> nachschüssig | H7: Verrechnung | I7: =C7 -> nachschüssig
B8: Anzahl Raten | C8: 120 | E8: Anzahl Raten | F8: 120 | H8: Anzahl Raten | I8: =C8 -> 120
B9: Restschuld | C9: =FV(C4/C13,C8,C5,C3,C14) -> -237,902.89 € | E9: Restschuld | F9: =C9 -> -237,902.89 € | H9: Restschuld | I9: =C9 -> -237,902.89 €
C10: =IF(C9>0,"Überzahlung","") -> 
C13: =IF(C6="monatlich",12,IF(C6="halbjährlich",2,IF(C6="vierteljährlich",4,1))) -> 12 | F13: =IF(F6="monatlich",12,IF(F6="halbjährlich",2,IF(F6="vierteljährlich",4,1))) -> 12 | I13: =IF(I6="monatlich",12,IF(I6="halbjährlich",2,IF(I6="vierteljährlich",4,1))) -> 12
C14: =IF(C7="nachschüssig",0,1) -> 0 | F14: =IF(F7="nachschüssig",0,1) -> 0 | I14: =IF(I7="nachschüssig",0,1) -> 0
B18: Berechnung der Tilgungsdauer | E18: Berechnung des Kreditbetrags
B19: Kreditbetrag € | C19: =C3 -> 600,000.00 € | E19: Kreditbetrag € | F19: =-PV(F20/F29,F24,F21,F25,F30) -> -600,000.00 €
B20: Zinssatz nom. | C20: =C4 -> 2.75% | E20: Zinssatz nom. | F20: =C4 -> 2.75%
B21: Rate € | C21: =C5 -> -4,000.00 € | E21: Rate € | F21: =C5 -> -4,000.00 €
B22: Frequenz | C22: =C6 -> monatlich | E22: Frequenz | F22: =C6 -> monatlich
B23: Verrechnung | C23: =C7 -> nachschüssig | E23: Verrechnung | F23: =C7 -> nachschüssig
B24: Anzahl Raten | C24: =NPER(C20/C29,C21,C19,C25,C30) -> 120.0 | E24: Anzahl Raten | F24: =C8 -> 120.0
B25: Restschuld | C25: =C9 -> -237,902.89 € | E25: Restschuld | F25: =C9 -> -237,902.89 €
C29: =IF(C22="monatlich",12,IF(C22="halbjährlich",2,IF(C22="vierteljährlich",4,1))) -> 12 | F29: =IF(F22="monatlich",12,IF(F22="halbjährlich",2,IF(F22="vierteljährlich",4,1))) -> 12 | I29: =IF(I22="monatlich",12,IF(I22="halbjährlich",2,IF(I22="vierteljährlich",4,1))) -> 1
C30: =IF(C23="nachschüssig",0,1) -> 0 | F30: =IF(F23="nachschüssig",0,1) -> 0 | I30: =IF(I23="nachschüssig",0,1) -> 1
I31: =H18-I21 -> 0.00 €
A100: monatlich | B100: 12
A101: vierteljährlich | B101: 4
A102: halbjährlich | B102: 2
A103: jährlich | B103: 1
A105: vorschüssig | B105: 1
A106: nachschüssig | B106: 0

Sheet KK-Bedarf
C2: KK-Bedarfsrechnung (weiße Felder erfassen, alle anderen sind Ergebnisfelder)
C4: Wachstum 10% | D4: Ist | E4: Budget | F4: Planung | G4: Ergebnisse | H4: Veränderung gg. Ist
C5: Umsatz | D5: 3,000 T€ | E5: =D5*(1+C4) -> 3,300 T€ | G5: =E5 -> 3,300 T€ | H5: =G5-D5 -> 300 T€
C6: Materialaufwand | D6: 2,400 T€ | E6: =E5*D6/D5 -> 2,640 T€ | G6: =E6 -> 2,640 T€ | H6: 240 T€
C7: Lager | D7: 300 T€ | E7: =D7*E5/D5 -> 330 T€ | G7: =E7*F13/E13 -> 220 T€ | H7: -80 T€
C8: Außenstände | D8: 400 T€ | E8: =D8*E5/D5 -> 440 T€ | G8: =E8*F12/E12 -> 275 T€ | H8: -125 T€
C9: Kreditoren | D9: 150 T€ | E9: =D9*E6/D6 -> 165 T€ | G9: =E9*F11/E11 -> 183 T€ | H9: 33 T€
C10: Anzahlungen | D10: 0 T€ | E10: =D10*E5/D5 -> 0 T€ | F10: Ziel 50 T€ | G10: =F10 -> 50 T€ | H10: 50 T€
C11: Kreditorenziel | D11: =D9/D6*360 -> 23 Tage | E11: =E9/E6*360 -> 23 Tage | F11: Ziel 25 Tage
C12: Debitorenziel | D12: =D8/D5*360 -> 48 Tage | E12: =E8/E5*360 -> 48 Tage | F12: Ziel 30 Tage
C13: Lagerdauer | D13: =D7/D6*360 -> 45 Tage | E13: =E7/E6*360 -> 45 Tage | F13: Ziel 30 Tage
C14: Net Working Capital | D14: =D7+D8-D9-D10 -> 550 T€ | E14: =E7+E8-E9-E10 -> 605 T€ | G14: =G7+G8-G9-G10 -> 262 T€ | H14: =G14-D14 -> -288 T€
C16: Zusätzlicher KK-Bedarf | E16: =E14-D14 -> 55 T€ | G16: =G14-D14 -> -288 T€
E17: =IF(E16>0,"mehr",IF(E16<0,"weniger","")) -> mehr | G17: =IF(G16>0,"mehr",IF(G16<0,"weniger","")) -> weniger

Sheet Skonto
C3: Vergleich Lieferantenkredit gegen Kontokorrentkredit
C4: Einkaufsvolumen in € p.a. | D4: Zahlungsziel in Tagen | E4: Skontosatz in % | F4: bei Zahlungsziel | G4: Bank-KK-Satz | H4: Guthaben
B5: Eingabe => | C5: 2,400,000.00 € | D5: 30 Tage | E5: 2.00% | F5: 10 Tage | G5: 10.000% | H5: 0
E6: =MIN(D38:D137) -> (Mind. 0.60%)
C7: Lieferantenkredit derzeit | D7: Lieferantenkredit künftig | E7: KK-Kredit | F7: Skonto p.a. in € | G7: KK-Zinsen p.a. in €
B8: Ergebisse => | C8: =C5/(360/D5) -> 200,000.00 € | D8: =IF(F5=0,0,C5/(360/F5)) -> 66,666.67 € | E8: =C8-D8-H5 -> 133,333.33 € | F8: =E5*C5 -> 48,000.00 € | G8: =E8*G5 -> 13,333.33 €
D10: 1 Jahr | E10: 5 Jahre | F10: monatlich
C11: Kundenvorteil vor Steuern | D11: =IF(F8-G8<=0,0,F8-G8) -> 34,666.67 € | E11: =D11*5 -> 173,333.33 € | F11: =D11/12 -> 2,888.89 €
C12: Kundennachteil vor Steuern | D12: =IF(F8-G8>=0,0,F8-G8) -> 0 | E12: =D12*5 -> 0 | F12: =D12/12 -> 0
C15: Factoring
C16: Umsatz | D16: 5,000,000.00 €
C17: Zahlungsziel | D17: 75 Tage
C18: Factoringgebühr | D18: 0.60%
C19: Zinssatz | D19: 8.00%
C20: Aufwand p.a. | D20: =D16*D18+D21*D19 -> 113,333.33 €
C21: Liquiditätsvorteil: | D21: =D16*D17/360 -> 1,041,666.67 € | E21: vor Einbehalt
C22: Aufwand / Liquidität | D22: =D20/D21 -> 10.88%
B37: Skontosatz | C37: Skontoertrag | D37: besser als KK?
B38: 0.10% | C38: =B38*C$5 -> 2400 | D38: =IF(C38>=G$8,B38,"") -> 
B39: =B38+0.1% -> 0.20% | C39: 4800
B40: 0.30% | C40: 7200
B41: 0.40% | C41: 9600
B42: 0.50% | C42: 12000
B43: 0.60% | C43: 14400 | D43: 0.60%
B44: 0.70% | C44: 16800 | D44: 0.70%
B45: 0.80% | C45: 19200 | D45: 0.80%
B46: 0.90% | C46: 21600 | D46: 0.90%
B47: 1.00% | C47: 24000 | D47: 1.00%
B48: 1.10% | C48: 26400 | D48: 1.10%
B49: 1.20% | C49: 28800 | D49: 1.20%
B50: 1.30% | C50: 31200 | D50: 1.30%
B51: 1.40% | C51: 33600 | D51: 1.40%
B52: 1.50% | C52: 36000 | D52: 1.50%
B53: 1.60% | C53: 38400 | D53: 1.60%
B54: 1.70% | C54: 40800 | D54: 1.70%
B55: 1.80% | C55: 43200 | D55: 1.80%
B56: 1.90% | C56: 45600 | D56: 1.90%
B57: 2.00% | C57: 48000 | D57: 2.00%
B58: 2.10% | C58: 50400 | D58: 2.10%
B59: 2.20% | C59: 52800 | D59: 2.20%
B60: 2.30% | C60: 55200 | D60: 2.30%
B61: 2.40% | C61: 57600 | D61: 2.40%
B62: 2.50% | C62: 60000 | D62: 2.50%
B63: 2.60% | C63: 62400 | D63: 2.60%
B64: 2.70% | C64: 64800 | D64: 2.70%
B65: 2.80% | C65: 67200 | D65: 2.80%
B66: 2.90% | C66: 69600 | D66: 2.90%
B67: 3.00% | C67: 72000 | D67: 3.00%
B68: 3.10% | C68: 74400 | D68: 3.10%
B69: 3.20% | C69: 76800 | D69: 3.20%
B70: 3.30% | C70: =B70*C$5 -> 79200 | D70: =IF(C70>=G$8,B70,"") -> 3.30%
B71: =B70+0.1% -> 3.40% | C71: 81600 | D71: 3.40%
B72: 3.50% | C72: 84000 | D72: 3.50%
B73: 3.60% | C73: 86400 | D73: 3.60%
B74: 3.70% | C74: 88800 | D74: 3.70%
B75: 3.80% | C75: 91200 | D75: 3.80%
B76: 3.90% | C76: 93600 | D76: 3.90%
B77: 4.00% | C77: 96000 | D77: 4.00%
B78: 4.10% | C78: 98400 | D78: 4.10%
B79: 4.20% | C79: 100800 | D79: 4.20%
B80: 4.30% | C80: 103200 | D80: 4.30%
B81: 4.40% | C81: 105600 | D81: 4.40%
B82: 4.50% | C82: 108000 | D82: 4.50%
B83: 4.60% | C83: 110400 | D83: 4.60%
B84: 4.70% | C84: 112800 | D84: 4.70%
B85: 4.80% | C85: 115200 | D85: 4.80%
B86: 4.90% | C86: 117600 | D86: 4.90%
B87: 5.00% | C87: 120000 | D87: 5.00%
B88: 5.10% | C88: 122400 | D88: 5.10%
B89: 5.20% | C89: 124800 | D89: 5.20%
B90: 5.30% | C90: 127200 | D90: 5.30%
B91: 5.40% | C91: 129600 | D91: 5.40%
B92: 5.50% | C92: 132000 | D92: 5.50%
B93: 5.60% | C93: 134400 | D93: 5.60%
B94: 5.70% | C94: 136800 | D94: 5.70%
B95: 5.80% | C95: 139200 | D95: 5.80%
B96: 5.90% | C96: 141600 | D96: 5.90%
B97: 6.00% | C97: 144000 | D97: 6.00%
B98: 6.10% | C98: 146400 | D98: 6.10%
B99: 6.20% | C99: 148800 | D99: 6.20%
B100: 6.30% | C100: 151200 | D100: 6.30%
B101: 6.40% | C101: 153600 | D101: 6.40%
B102: 6.50% | C102: =B102*C$5 -> 156000 | D102: =IF(C102>=G$8,B102,"") -> 6.50%
B103: =B102+0.1% -> 6.60% | C103: 158400 | D103: 6.60%
B104: 6.70% | C104: 160800 | D104: 6.70%
B105: 6.80% | C105: 163200 | D105: 6.80%
B106: 6.90% | C106: 165600 | D106: 6.90%
B107: 7.00% | C107: 168000 | D107: 7.00%
B108: 7.10% | C108: 170400 | D108: 7.10%
B109: 7.20% | C109: 172800 | D109: 7.20%
B110: 7.30% | C110: 175200 | D110: 7.30%
B111: 7.40% | C111: 177600 | D111: 7.40%
B112: 7.50% | C112: 180000 | D112: 7.50%
B113: 7.60% | C113: 182400 | D113: 7.60%
B114: 7.70% | C114: 184800 | D114: 7.70%
B115: 7.80% | C115: 187200 | D115: 7.80%
B116: 7.90% | C116: 189600 | D116: 7.90%
B117: 8.00% | C117: 192000 | D117: 8.00%
B118: 8.10% | C118: 194400 | D118: 8.10%
B119: 8.20% | C119: 196800 | D119: 8.20%
B120: 8.30% | C120: 199200 | D120: 8.30%
B121: 8.40% | C121: 201600 | D121: 8.40%
B122: 8.50% | C122: 204000 | D122: 8.50%
B123: 8.60% | C123: 206400 | D123: 8.60%
B124: 8.70% | C124: 208800 | D124: 8.70%
B125: 8.80% | C125: 211200 | D125: 8.80%
B126: 8.90% | C126: 213600 | D126: 8.90%
B127: 9.00% | C127: 216000 | D127: 9.00%
B128: 9.10% | C128: 218400 | D128: 9.10%
B129: 9.20% | C129: 220800 | D129: 9.20%
B130: 9.30% | C130: 223200 | D130: 9.30%
B131: 9.40% | C131: 225600 | D131: 9.40%
B132: 9.50% | C132: 228000 | D132: 9.50%
B133: 9.60% | C133: 230400 | D133: 9.60%
B134: 9.70% | C134: =B134*C$5 -> 232800 | D134: =IF(C134>=G$8,B134,"") -> 9.70%
B135: 9.80% | C135: =B135*C$5 -> 235200 | D135: =IF(C135>=G$8,B135,"") -> 9.80%
B136: 9.90% | C136: =B136*C$5 -> 237600 | D136: =IF(C136>=G$8,B136,"") -> 9.90%
B137: 10.00% | C137: =B137*C$5 -> 240000 | D137: =IF(C137>=G$8,B137,"") -> 10.00%

Sheet LV Tilgung
C2: Darlehnstilgung mit Lebensversicherungen (Überschlagsrechnung)
F3: Cash Flows nach Steuern
D4: annuitätisch | E4: endfälig | F4: Jahr | G4: Annuit. Tilg | H4: LV Tilg
C5: Wie hoch ist der Darlehnsbetrag in €? | D5: 900,000.00 € | E5: =D5 -> 900,000.00 € | F5: =C49 -> 0 | G5: =-I49 -> 900,000.00 € | H5: =L49 -> 900,000.00 €
C6: Laufzeit (ganze Jahre, max 30) | D6: 20 Jahre | E6: =D6 -> 20 Jahre | F6: =C50 -> 1 | G6: -47,346.31 € | H6: -13,338.00 €
C7: Wie hoch ist der Zinssatz in % | D7: 2.85% | E7: 2.85% | F7: 2 | G7: -47,811.54 € | H7: -13,338.00 €
C8: Wie hoch ist der Restwert am Ende der Laufzeit in € ? | D8: 0.00 € | E8: =E5 -> 900,000.00 € | F8: 3 | G8: -48,290.03 € | H8: -13,338.00 €
C9: Die Jahresrate (nachschüssig) wird berechnet. Sie beträgt ca… | D9: =PMT(D7,D6,-D5,D8,0) -> 59,658.31 € | E9: =E5*E7 -> 25,650.00 € | F9: 4 | G9: -48,782.16 € | H9: -13,338.00 €
C10: Die Summe aller Raten beträgt… | D10: =D9*D6 -> 1,193,166.11 € | E10: =E9*E6 -> 513,000.00 € | F10: 5 | G10: -49,288.32 € | H10: -13,338.00 €
C11: davon entfallen auf Zinsen… | D11: =D10-D5+D8 -> 293,166.11 € | E11: =E10 -> 513,000.00 € | F11: 6 | G11: -49,808.90 € | H11: -13,338.00 €
C12: und auf Tilgung… | D12: =D10-D11 -> 900,000.00 € | E12: 0.00 € | F12: 7 | G12: -50,344.32 € | H12: -13,338.00 €
C13: Mit welchem Steuersatz kalkulieren Sie für Zinsen und LV? | D13: 48.00% | E13: =D13 -> 48% | F13: 8 | G13: -50,894.99 € | H13: -13,338.00 €
C14: Ihre Steuererstattung auf die Zinsen beträgt danach… | D14: =D13*D11 -> 140,719.73 € | E14: =E13*E11 -> 246,240.00 € | F14: 9 | G14: -51,461.36 € | H14: -13,338.00 €
C15: Netto beträgt Ihr Zinsaufwand somit ca… | D15: =D11-D14 -> 152,446.38 € | E15: =E11-E14 -> 266,760.00 € | F15: 10 | G15: -52,043.88 € | H15: -13,338.00 €
C16: Ihre jährlich nachträglich zu zahlende LV-Prämie beträgt pro Jahr… | E16: 0.00 € | F16: 11 | G16: -52,642.99 € | H16: -13,338.00 €
C17: angenommene LV-Rendite nach Kosten | E17: 3.50% | F17: 12 | G17: -53,259.18 € | H17: -13,338.00 €
C18: Als Tilgungsersatz leisten Sie insgesamt €… | E18: =E16*E6 -> 0.00 € | F18: 13 | G18: -53,892.93 € | H18: -13,338.00 €
C19: Der Policenwert zum Laufzeitende wird betragen (ca. €) | E19: =-FV(E17,E6,E16,0,0) -> 0.00 € | F19: 14 | G19: -54,544.74 € | H19: -13,338.00 €
C20: Der Überschuss der Versicherung beträgt ca. €… | E20: =E19-E18 -> 0.00 € | F20: 15 | G20: -55,215.13 € | H20: -13,338.00 €
C21: Vom LV-Gewinn müssen Sie wie viel versteuern (0%, 50%, 100%) | E21: 50% | F21: 16 | G21: -55,904.63 € | H21: -13,338.00 €
C22: Damit müssen Sie am Laufzeitende ans Finanzamt abführen €… | E22: =E20*E21*E13 -> 0.00 € | F22: 17 | G22: -56,613.77 € | H22: -13,338.00 €
C23: =IF(E23<0,"Fehlen nach Abzug der Tilgung","Verbleiben nach Abzug der Tilgung") -> Fehlen nach Abzug der Tilgung | E23: =-E5+E19-E22 -> -900,000.00 € | F23: 18 | G23: -57,343.13 € | H23: -13,338.00 €
F24: 19 | G24: -58,093.27 € | H24: -13,338.00 €
F25: 20 | G25: -58,864.79 € | H25: -913,338.00 €
F26: 21 | G26: 0.00 € | H26: 0.00 €
C27: Vergleichsrechnung in der Übersicht | F27: 22 | G27: 0.00 € | H27: 0.00 €
C28: Summe der Darlehnsraten | D28: =-D10 -> -1,193,166.11 € | E28: =-(E10+E12) -> -513,000.00 € | F28: 23 | G28: 0.00 € | H28: 0.00 €
C29: abzüglich Steuern auf Zinsen | D29: =D14 -> 140,719.73 € | E29: =E14 -> 246,240.00 € | F29: 24 | G29: 0.00 € | H29: 0.00 €
C30: zuzüglich LV/RV-Prämien | D30: 0.00 € | E30: =-E18 -> 0.00 € | F30: 25 | G30: 0.00 € | H30: 0.00 €
C31: abzüglich LV-Zufluss | D31: 0.00 € | E31: =E19 -> 0.00 € | F31: 26 | G31: 0.00 € | H31: 0.00 €
C32: zuzüglich Steuern auf LV/RV-Überschuss | D32: =D22 -> 0.00 € | E32: =-E22 -> 0.00 € | F32: 27 | G32: 0.00 € | H32: 0.00 €
C33: zuzüglich Kredittilgung | D33: 0.00 € | E33: =-E8 -> -900,000.00 € | F33: 28 | G33: 0.00 € | H33: 0.00 €
C34: Gesamtegebnis: Aufwand nach Steuern | D34: =SUM(D28:D33) -> -1,052,446.38 € | E34: =SUM(E28:E33) -> -1,166,760.00 € | F34: 29 | G34: 0.00 € | H34: 0.00 €
C35: Vorteil / Nachteil | D35: =-(-D34+E34) -> 114,313.62 € | E35: =-D35 -> -114,313.62 € | F35: =C79 -> 30 | G35: 0.00 € | H35: 0.00 €
C36: Interne Kapitalverzinsnung der Cash Flows nach Steuern | D36: =IRR(I49:I79,0.05) -> 1.48% | E36: =IRR(L49:L79,0.05) -> 1.48%
D48: Rate | E48: Zinsen | F48: Steuern | G48: Tilgung | H48: Kapital | I48: Cash Flow 1 | J48: Rate 2 netto | K48: Tilg 2 | L48: Cash Flow 2
C49: 0 | D49: 0 | E49: 0 | F49: 0 | G49: 0 | H49: =D5 -> 900,000.00 € | I49: =-H49 -> -900,000.00 € | J49: =-I49 -> 900,000.00 € | L49: =J49 -> 900,000.00 €
C50: 1 | D50: =IF(C50<=$D$6,$D$9,0) -> 59,658.31 € | E50: =H49*D7 -> 25,650.00 € | F50: =E50*$D$13 -> 12,312.00 € | G50: =D50-F50 -> 47,346.31 € | H50: =H49-D50+E50 -> 865,991.69 € | I50: =D50-F50 -> 47,346.31 € | J50: =IF(C50>$E$6,0,$E$9*(1-$E$13)+$E$16) -> 13,338.00 € | K50: =IF(C50=$E$6,-$E$23,0) -> 0 | L50: =-K50-J50 -> -13,338.00 €
C51: 2 | D51: 59,658.31 € | E51: =H50*$D$7 -> 24,680.76 € | F51: =E51*$D$13 -> 11,846.77 € | G51: 47,811.54 € | H51: 831,014.15 € | I51: 47,811.54 € | J51: 13,338.00 € | K51: =IF(C51=$E$6,-$E$23,0) -> 0 | L51: =-K51-J51 -> -13,338.00 €
C52: 3 | D52: 59,658.31 € | E52: =H51*$D$7 -> 23,683.90 € | F52: =E52*$D$13 -> 11,368.27 € | G52: 48,290.03 € | H52: 795,039.75 € | I52: 48,290.03 € | J52: 13,338.00 € | K52: 0 | L52: -13,338.00 €
C53: 4 | D53: 59,658.31 € | E53: 22,658.63 € | F53: 10,876.14 € | G53: 48,782.16 € | H53: 758,040.08 € | I53: 48,782.16 € | J53: 13,338.00 € | K53: 0 | L53: -13,338.00 €
C54: 5 | D54: 59,658.31 € | E54: 21,604.14 € | F54: 10,369.99 € | G54: 49,288.32 € | H54: 719,985.91 € | I54: 49,288.32 € | J54: 13,338.00 € | K54: 0 | L54: -13,338.00 €
C55: 6 | D55: 59,658.31 € | E55: 20,519.60 € | F55: 9,849.41 € | G55: 49,808.90 € | H55: 680,847.21 € | I55: 49,808.90 € | J55: 13,338.00 € | K55: 0 | L55: -13,338.00 €
C56: 7 | D56: 59,658.31 € | E56: 19,404.15 € | F56: 9,313.99 € | G56: 50,344.32 € | H56: 640,593.05 € | I56: 50,344.32 € | J56: 13,338.00 € | K56: 0 | L56: -13,338.00 €
C57: 8 | D57: 59,658.31 € | E57: 18,256.90 € | F57: 8,763.31 € | G57: 50,894.99 € | H57: 599,191.64 € | I57: 50,894.99 € | J57: 13,338.00 € | K57: 0 | L57: -13,338.00 €
C58: 9 | D58: 59,658.31 € | E58: 17,076.96 € | F58: 8,196.94 € | G58: 51,461.36 € | H58: 556,610.30 € | I58: 51,461.36 € | J58: 13,338.00 € | K58: 0 | L58: -13,338.00 €
C59: 10 | D59: 59,658.31 € | E59: 15,863.39 € | F59: 7,614.43 € | G59: 52,043.88 € | H59: 512,815.39 € | I59: 52,043.88 € | J59: 13,338.00 € | K59: 0 | L59: -13,338.00 €
C60: 11 | D60: 59,658.31 € | E60: 14,615.24 € | F60: 7,015.31 € | G60: 52,642.99 € | H60: 467,772.32 € | I60: 52,642.99 € | J60: 13,338.00 € | K60: 0 | L60: -13,338.00 €
C61: 12 | D61: 59,658.31 € | E61: 13,331.51 € | F61: 6,399.13 € | G61: 53,259.18 € | H61: 421,445.53 € | I61: 53,259.18 € | J61: =IF(C61>$E$6,0,$E$9*(1-$E$13)+$E$16) -> 13,338.00 € | K61: 0 | L61: -13,338.00 €
C62: 13 | D62: 59,658.31 € | E62: 12,011.20 € | F62: 5,765.37 € | G62: 53,892.93 € | H62: 373,798.42 € | I62: 53,892.93 € | J62: =IF(C62>$E$6,0,$E$9*(1-$E$13)+$E$16) -> 13,338.00 € | K62: 0 | L62: -13,338.00 €
C63: 14 | D63: 59,658.31 € | E63: 10,653.25 € | F63: 5,113.56 € | G63: 54,544.74 € | H63: 324,793.37 € | I63: 54,544.74 € | J63: 13,338.00 € | K63: 0 | L63: -13,338.00 €
C64: 15 | D64: 59,658.31 € | E64: 9,256.61 € | F64: 4,443.17 € | G64: 55,215.13 € | H64: 274,391.67 € | I64: 55,215.13 € | J64: 13,338.00 € | K64: 0 | L64: -13,338.00 €
C65: 16 | D65: 59,658.31 € | E65: 7,820.16 € | F65: 3,753.68 € | G65: 55,904.63 € | H65: 222,553.53 € | I65: 55,904.63 € | J65: 13,338.00 € | K65: 0 | L65: -13,338.00 €
C66: 17 | D66: 59,658.31 € | E66: 6,342.78 € | F66: 3,044.53 € | G66: 56,613.77 € | H66: 169,238.00 € | I66: 56,613.77 € | J66: 13,338.00 € | K66: 0 | L66: -13,338.00 €
C67: 18 | D67: 59,658.31 € | E67: 4,823.28 € | F67: 2,315.18 € | G67: 57,343.13 € | H67: 114,402.98 € | I67: 57,343.13 € | J67: 13,338.00 € | K67: 0 | L67: -13,338.00 €
C68: 19 | D68: 59,658.31 € | E68: 3,260.48 € | F68: 1,565.03 € | G68: 58,093.27 € | H68: 58,005.16 € | I68: 58,093.27 € | J68: 13,338.00 € | K68: 0 | L68: -13,338.00 €
C69: 20 | D69: 59,658.31 € | E69: 1,653.15 € | F69: 793.51 € | G69: 58,864.79 € | H69: 0.00 € | I69: 58,864.79 € | J69: 13,338.00 € | K69: 900,000.00 € | L69: -913,338.00 €
C70: 21 | D70: 0.00 € | E70: 0.00 € | F70: 0.00 € | G70: -0.00 € | H70: 0.00 € | I70: -0.00 € | J70: 0 | K70: 0 | L70: 0
C71: 22 | D71: 0.00 € | E71: 0.00 € | F71: 0.00 € | G71: -0.00 € | H71: 0.00 € | I71: -0.00 € | J71: 0 | K71: 0 | L71: 0
C72: 23 | D72: 0.00 € | E72: 0.00 € | F72: 0.00 € | G72: -0.00 € | H72: 0.00 € | I72: -0.00 € | J72: 0 | K72: 0 | L72: 0
C73: 24 | D73: 0.00 € | E73: 0.00 € | F73: 0.00 € | G73: -0.00 € | H73: 0.00 € | I73: -0.00 € | J73: 0 | K73: 0 | L73: 0
C74: 25 | D74: 0.00 € | E74: 0.00 € | F74: 0.00 € | G74: -0.00 € | H74: 0.00 € | I74: -0.00 € | J74: 0 | K74: 0 | L74: 0
C75: 26 | D75: 0.00 € | E75: 0.00 € | F75: 0.00 € | G75: -0.00 € | H75: 0.00 € | I75: -0.00 € | J75: 0 | K75: 0 | L75: 0
C76: 27 | D76: 0.00 € | E76: 0.00 € | F76: 0.00 € | G76: -0.00 € | H76: 0.00 € | I76: -0.00 € | J76: 0 | K76: 0 | L76: 0
C77: 28 | D77: 0.00 € | E77: 0.00 € | F77: 0.00 € | G77: -0.00 € | H77: 0.00 € | I77: -0.00 € | J77: 0 | K77: 0 | L77: 0
C78: 29 | D78: 0.00 € | E78: 0.00 € | F78: 0.00 € | G78: -0.00 € | H78: 0.00 € | I78: -0.00 € | J78: 0 | K78: 0 | L78: 0
C79: 30 | D79: 0.00 € | E79: 0.00 € | F79: 0.00 € | G79: -0.00 € | H79: 0.00 € | I79: -0.00 € | J79: 0 | K79: 0 | L79: 0
